Cogmind - Beta 10.2 @@@ ROGUE MODE // 2021.01.14 @ 14:46:41 Player: WayneKnight Result: Self-destructed Performance ------------- Evolutions (4) 2000 Regions Visited (13) 2600 Robots Destroyed (147) 735 Value Destroyed (4251) 4251 Prototype IDs (38) 760 Alien Tech Used (0) 0 Bonus (-9) -9 TOTAL SCORE: 10337 Bonus ------- High Alert Combat Kills 33 Follower Combat Kills 157 Aligned with FarCom 300 Friendly Fire -499 Cogmind --------- Core Integrity 850/850 Matter 300/300 Energy 100/100 System Corruption 13% Temperature Cool (0) Movement Hovering (48) Location -6/Factory Parts ------- > --- POWER (1) -------- (None) > --- PROPULSION (4) --- Gravmag System Gravmag System Gravmag System Gravmag System > --- UTILITY (8) ------ Large Storage Unit Long-range Sensor Array Advanced Signal Interpreter Improved Propulsion Shielding Improved Propulsion Shielding EM Shield > --- WEAPON (2) ------- (None) > --- INVENTORY (10) --- Antimatter Reactor Impulse Thruster High-capacity Storage Unit Gravity Neutralizing Apparatus Cloak of Protection Damper Plating Guided Plasma Cannon Heavy Rocket Launcher Peak State ------------ > --- POWER ------------ Improved Deuterium Engine > --- PROPULSION ------- Gravmag System Gravmag System Gravmag System Gravmag System > --- UTILITY ---------- Large Storage Unit Long-range Sensor Array Advanced Signal Interpreter Improved Propulsion Shielding Improved Propulsion Shielding EM Shield Hacking Suite Hacking Suite > --- WEAPON ----------- Greatsword > --- INVENTORY -------- Antimatter Reactor Impulse Thruster High-capacity Storage Unit Gravity Neutralizing Apparatus Cloak of Protection Damper Plating Guided Plasma Cannon Heavy Rocket Launcher [Rating: 58] Favorites ----------- Power Improved Ion Engine Engine Improved Ion Engine Power Core Nuclear Core Propulsion Advanced Treads Treads Advanced Treads Leg Aluminum Leg Hover Unit Gravmag System Flight Unit Biomechanical Wings Utility High-capacity Storage Unit Device Long-range Sensor Array Storage High-capacity Storage Unit Processor Advanced Signal Interpreter Hackware Hacking Suite Protection Hardened Medium Armor Plating Weapon Autogun Energy Gun EM Pulse Gun Energy Cannon Beam Cannon Ballistic Gun Autogun Launcher Grenade Launcher Impact Weapon Power Maul Slashing Weapon Greatsword Special Melee Weapon Improved Datajack Build | -11 -10 -10 -9 -9 -9 -8 -8 -7 -7 -7 -6 -6 -6 ------- Run | Scr Mat Min Mat Min Exi Min Mat Fac Was Fac Fac Was Fac Slots Evolved 8 | . . . 2 . . . 2 2 . . 2 . . Power . | . . . . . . . . . . . . . . Propulsion 2 | . . . . . . . 1 1 . . . . . Utility 6 | . . . 2 . . . 1 1 . . 2 . . Weapon . | . . . . . . . . . . . . . . Parts Attached 179 | . 16 . 26 1 31 9 26 61 . 1 . 4 4 Power 18 | . 2 . 1 . 2 . 2 11 . . . . . Engine 13 | . 2 . 1 . 1 . 1 8 . . . . . Core 5 | . . . . . 1 . 1 3 . . . . . Reactor . | . . . . . . . . . . . . . . Propulsion 31 | . 3 . 5 . 3 1 7 10 . . . . 2 Treads 24 | . 3 . 5 . 2 1 7 6 . . . . . Leg 1 | . . . . . 1 . . . . . . . . Wheel . | . . . . . . . . . . . . . . Hover 5 | . . . . . . . . 4 . . . . 1 Flight 1 | . . . . . . . . . . . . . 1 Utility 77 | . 2 . 9 . 18 2 9 32 . . . 3 2 Device 20 | . . . . . 3 1 . 15 . . . . 1 Storage 14 | . 1 . 3 . 7 1 1 1 . . . . . Processor 2 | . . . . . 1 . . 1 . . . . . Hackware 2 | . . . . . . . . . . . . 1 1 Protection 39 | . 1 . 6 . 7 . 8 15 . . . 2 . Artifact . | . . . . . . . . . . . . . . Weapon 53 | . 9 . 11 1 8 6 8 8 . 1 . 1 . Energy Gun 5 | . 3 . 2 . . . . . . . . . . Energy Cannon 2 | . 1 . 1 . . . . . . . . . . Ballistic Gun 36 | . 3 . 7 1 6 6 8 5 . . . . . Ballistic Cannon . | . . . . . . . . . . . . . . Launcher 6 | . 2 . 1 . 1 . . 1 . 1 . . . Special Weapon . | . . . . . . . . . . . . . . Impact Weapon 1 | . . . . . 1 . . . . . . . . Slashing Weapon 2 | . . . . . . . . 1 . . . 1 . Piercing Weapon . | . . . . . . . . . . . . . . Special Melee Weapon 1 | . . . . . . . . 1 . . . . . Unidentified Prototypes 10 | . . . 2 . 5 . 2 . . . . . 1 Parts Lost 19 | . 2 . . . 4 2 3 4 . . . . 4 Power 4 | . 1 . . . 1 . . 1 . . . . 1 Propulsion 6 | . . . . . 1 . 2 3 . . . . . Utility 5 | . . . . . 1 1 1 . . . . . 2 Weapon 4 | . 1 . . . 1 1 . . . . . . 1 Highest Loss Streak 4 | . 1 . . . 2 2 2 1 . . . . 4 Average Slot Usage (%) 97 | . 95 100 99 100 95 100 99 98 92 89 66 74 86 Engine 7 | . 14 14 11 11 10 . 1 6 7 7 6 6 6 Core 2 | . . . . . . 11 7 . . . . . . Treads 22 | . 27 28 22 22 21 22 26 25 . . . . . Hover 2 | . . . . . . . . 4 30 30 26 26 25 Device 2 | . . . . . . 6 . 7 15 14 6 6 12 Storage 21 | . 14 14 22 33 26 33 27 20 7 7 6 6 6 Processor 1 | . . . . . . . . 5 7 7 6 6 6 Protection 14 | . 9 14 21 11 12 4 17 10 15 15 13 13 13 Energy Gun 1 | . 14 . 1 . . . . . . . . . . Ballistic Gun 16 | . 11 14 20 22 21 22 18 12 . . . . . Naked Turns . | . . . . . . . . . . . . . . Heaviest Build 158 | 11 49 49 85 85 158 115 131 110 43 43 38 43 40 Greatest Support 87 | 20 40 40 45 44 56 44 65 87 44 44 44 44 44 Greatest Overweight (x) 14 | . 1 1 1 1 3 2 2 14 . . . . 13 Average Overweight (x) . | . . 1 1 1 1 2 1 . . . . . . Largest Inventory Capacity 38 | 6 12 12 24 24 38 26 26 26 10 10 10 10 10 Average Capacity 19 | 6 9 12 18 24 24 25 26 23 10 10 10 10 10 Most Carried 26 | 6 12 12 20 23 24 25 26 26 10 10 10 10 10 Average Carried 18 | 6 7 11 17 20 21 23 25 23 10 9 10 9 10 Final Capacity 26 | 6 12 12 24 24 24 26 26 10 10 10 10 10 10 Final Carried 26 | 6 12 12 20 23 24 23 26 10 10 10 10 10 10 Class Distribution -------------------- 54% | Hauler-Mutant 40% | Mutant 4% | Scavenger-Mutant Dominant Class ---------------- Mutant | -10/Materials Mutant | -10/Mines Mutant | -9/Materials Hauler-Mutant | -9/Mines Hauler-Mutant | -9/Exiles Hauler-Mutant | -8/Mines Hauler-Mutant | -8/Materials Hauler-Mutant | -7/Factory Mutant | -7/Waste Mutant | -7/Factory Mutant | -6/Factory Scavenger-Mutant | -6/Waste Scavenger-Mutant | -6/Factory Resources | -11 -10 -10 -9 -9 -9 -8 -8 -7 -7 -7 -6 -6 -6 ----------- Run | Scr Mat Min Mat Min Exi Min Mat Fac Was Fac Fac Was Fac Matter Collected 4822 | 200 220 70 1008 94 564 218 1274 790 . 18 . 336 30 Remotely . | . . . . . . . . . . . . . . Salvage Created 5912 | 79 638 55 1430 176 157 403 1596 737 . 160 . 421 60 Parts 375 | . 45 4 104 6 20 12 92 62 . 13 . 6 11 Haulers Intercepted 8 | . 2 . 4 . . . 2 . . . . . . Recyclers Shooed 4 | . 1 . 1 . . . 2 . . . . . . Parts Field Recycled . | . . . . . . . . . . . . . . Retrieved Matter . | . . . . . . . . . . . . . . Parts Self-Destructed . | . . . . . . . . . . . . . . Prevented . | . . . . . . . . . . . . . . Kills | -11 -10 -10 -9 -9 -9 -8 -8 -7 -7 -7 -6 -6 -6 ------- Run | Scr Mat Min Mat Min Exi Min Mat Fac Was Fac Fac Was Fac Combat Hostiles Destroyed 119 | . 12 4 29 4 7 6 32 19 . 6 . . . Melee 2 | . . . . . . . . . . 2 . . . Guns 100 | . 11 . 28 4 2 6 32 17 . . . . . AOE 17 | . 1 4 1 . 5 . . 2 . 4 . . . Classes Destroyed 15 | 1 4 . 3 . 1 1 2 2 . . . . 1 Worker 7 | . . . 2 . . 1 1 . . 2 . . 1 Builder 3 | . . . . . . . 1 1 . . . . 1 Tunneler 1 | . . . . . . 1 . . . . . . . Hauler 8 | . 2 . 4 . . . 2 . . . . . . Recycler 3 | 1 . . . . . . 2 . . . . . . Operator 1 | . . . . . . . . . . . . . 1 Watcher 12 | . 3 . 2 . . . 4 3 . . . . . Swarmer 35 | . 2 2 8 . . . 11 7 . 5 . . . Grunt 44 | . 10 2 13 3 . 6 9 . . 1 . . . Duelist 3 | . . . 1 1 . . 1 . . . . . . Sentry 20 | . . . 7 . . . 10 3 . . . . . Demolisher 1 | . . . . . . . . 1 . . . . . Hunter 2 | . . . . . . . 1 1 . . . . . Programmer 5 | . . . . . . . . 5 . . . . . Assembled 9 | . . . . . 7 . . 2 . . . . . Best Kill Streak 7 | 1 3 2 7 2 7 3 4 5 . 5 . . 1 Combat Bots Only 7 | . 2 2 7 2 6 3 4 4 . 4 . . . Max Kills in Single Turn 4 | 1 1 1 2 1 3 2 2 2 . 4 . . 1 Gunslinging 1 | . . . 1 . . . . . . . . . . Exploded 3 | . 1 1 1 . 3 . . 2 . 3 . . . Melee 1 | . . . . . . . . . . 1 . . . Uniques/NPCs Destroyed 2 | . . . . . 2 . . . . . . . . EX-HEX (-9/Exiles) 8R-AWN (-9/Exiles) Combat | -11 -10 -10 -9 -9 -9 -8 -8 -7 -7 -7 -6 -6 -6 -------- Run | Scr Mat Min Mat Min Exi Min Mat Fac Was Fac Fac Was Fac Damage Taken 7879 | . 593 21 842 111 1227 526 2139 1734 . 372 7 . 307 Core 789 | . 101 . 105 . 123 70 141 186 . 63 . . . Absorbed by Shields . | . . . . . . . . . . . . . . Core Remaining (%) 64 | 100 . 59 . . . 25 74 . . 64 . . . Volleys Fired 434 | 3 56 6 88 12 40 28 127 71 . 3 . . . Largest 2 | 2 2 1 2 2 2 2 2 2 . 1 . . . Hottest 100 | 90 100 30 60 46 46 53 50 53 . 39 . . . Shots Fired 850 | 6 110 6 175 24 77 56 254 139 . 3 . . . Gun 832 | 6 106 . 174 24 74 56 254 138 . . . . . Cannon 3 | . 3 . . . . . . . . . . . . Launcher 15 | . 1 6 1 . 3 . . 1 . 3 . . . Special . | . . . . . . . . . . . . . . Kinetic 761 | . 51 . 164 24 74 56 254 138 . . . . . Thermal 18 | 3 15 . . . . . . . . . . . . Explosive 15 | . 1 6 1 . 3 . . 1 . 3 . . . Electromagnetic 56 | 3 43 . 10 . . . . . . . . . . Robot Hit Streak 22 | 4 12 . 21 8 13 22 13 12 . 5 . . . Robot Miss Streak 4 | 1 3 . 3 1 4 2 3 4 . . . . . Penetration Max 2 | . . . . . . 2 . . . . . . . Secondary Targets 3 | . . . 2 . . . . 1 . . . . . Max Gunslinging Chain 1 | . . . 1 . . . . 1 . . . . . Shots Hit Robots 623 | 4 78 . 127 19 59 43 179 99 . 9 . 2 4 Core Hits 275 | 2 28 5 49 9 32 14 76 48 . 7 . 2 3 Critical Hits 12 | . 1 . 3 . . 4 1 3 . . . . . Critical Kills 6 | . . . 2 . . 2 1 1 . . . . . Critical Parts Destroyed 6 | . 1 . 1 . . 2 . 2 . . . . . Melee Attacks 29 | . . . . . . . . 2 . 13 . 2 12 Impact . | . . . . . . . . . . . . . . Slashing 29 | . . . . . . . . 2 . 13 . 2 12 Piercing . | . . . . . . . . . . . . . . Sneak Attacks 5 | . . . . . . . . . . 1 . . 4 Combat Hostiles . | . . . . . . . . . . . . . . Follow-up Attacks . | . . . . . . . . . . . . . . Damage Inflicted 12568 | 87 1028 219 2064 304 1337 775 2951 1977 . 898 15 248 665 Guns 9372 | 39 925 . 1927 283 882 763 2916 1637 . . . . . Cannons . | . . . . . . . . . . . . . . Explosions 1639 | 48 87 219 105 . 455 . . 237 . 488 . . . Melee 1383 | . . . . . . . . 60 . 410 . 248 665 Ramming 174 | . 16 . 32 21 . 12 35 43 . . 15 . . Kinetic 8609 | . 289 . 1839 283 882 763 2916 1637 . . . . . Thermal 234 | 61 173 . . . . . . . . . . . . Explosive 1543 | . 39 219 105 . 455 . . 237 . 488 . . . Electromagnetic 625 | 26 511 . 88 . . . . . . . . . . Impact . | . . . . . . . . . . . . . . Slashing 1383 | . . . . . . . . 60 . 410 . 248 665 Piercing . | . . . . . . . . . . . . . . Highest Corruption 8 | . . . . . . . . 1 6 8 . . . Average Corruption 2 | . . . . . . . . 1 5 6 . . . Corruption Purged . | . . . . . . . . . . . . . . Effects 21 | . . . . . . . . 9 3 9 . . . Message Errors 3 | . . . . . . . . 2 1 . . . . Matter Fused 3 | . . . . . . . . . 2 1 . . . Heat Flow Errors 3 | . . . . . . . . . . 3 . . . Energy Discharges 3 | . . . . . . . . 1 . 2 . . . Data Loss (minor) 2 | . . . . . . . . . . 2 . . . Targeting Errors 6 | . . . . . . . . 5 . 1 . . . Weapon Failures 1 | . . . . . . . . 1 . . . . . Overload Shots . | . . . . . . . . . . . . . . Overflow Damage 241 | . . . . . 1 . . 66 . 174 . . . Projectiles . | . . . . . . . . . . . . . . Explosions 73 | . . . . . 1 . . 41 . 31 . . . Melee 168 | . . . . . . . . 25 . 143 . . . Knockbacks . | . . . . . . . . . . . . . . Impact . | . . . . . . . . . . . . . . Kinetic . | . . . . . . . . . . . . . . Secondary . | . . . . . . . . . . . . . . Self-Inflicted Damage 51 | . . . 28 . . . . 16 . . 7 . . Shots 2 | . . . 1 . . . . 1 . . . . . Rammed 21 | . 5 . 5 4 . . 4 2 . . 1 . . Targets Rammed 22 | . 5 . 5 4 . 1 4 2 . . 1 . . Kicked . | . . . . . . . . . . . . . . Crushed 1 | . . . . . . 1 . . . . . . . Highest Temperature 304 | 90 246 4 174 26 304 301 228 50 . 134 . . . Average Temperature 58 | 40 58 3 41 13 152 118 39 15 . 52 . . . Received Heat Transfer 1848 | . 246 6 264 42 . 279 666 282 . 54 . . 9 Effects 4 | . . . . . 2 2 . . . . . . . Interference 4 | . . . . . 2 2 . . . . . . . Siege Activations . | . . . . . . . . . . . . . . Robots Corrupted . | . . . . . . . . . . . . . . Combat Hostiles . | . . . . . . . . . . . . . . Parts Fried 1 | . 1 . . . . . . . . . . . . Impact Corruptions . | . . . . . . . . . . . . . . Robots Melted . | . . . . . . . . . . . . . . Combat Hostiles . | . . . . . . . . . . . . . . Parts Melted 2 | . . . 2 . . . . . . . . . . Heat Transferred 557 | 87 470 . . . . . . . . . . . . Parts Sabotaged . | . . . . . . . . . . . . . . Parts Stolen . | . . . . . . . . . . . . . . Parts Stripped . | . . . . . . . . . . . . . . Power Chain Reactions 2 | 1 1 . . . . . . . . . . . . Missiles Intercepted . | . . . . . . . . . . . . . . Alert | -11 -10 -10 -9 -9 -9 -8 -8 -7 -7 -7 -6 -6 -6 ------- Run | Scr Mat Min Mat Min Exi Min Mat Fac Was Fac Fac Was Fac Peak Influence 452 | 5 254 68 372 199 . 176 452 321 103 413 208 72 121 Initial 202 | . 3 18 . 84 . . . 100 58 72 202 72 50 Average 156 | 1 62 35 145 70 . 59 280 188 78 184 207 72 63 Maximum Alert Level 2 | . 1 . 1 . . . 2 1 . 2 1 . . Low Security (%) 65 | 100 98 100 71 100 . 100 18 57 100 61 . 100 100 Level 1 29 | . 1 . 28 . . . 60 42 . 34 100 . . Level 2 5 | . . . . . . . 20 . . 4 . . . Level 3 . | . . . . . . . . . . . . . . Level 4 . | . . . . . . . . . . . . . . Level 5 . | . . . . . . . . . . . . . . High Security . | . . . . . . . . . . . . . . Max Security . | . . . . . . . . . . . . . . Squads Dispatched 20 | . 3 . 6 . . . 3 5 . 2 . . 1 Investigation 3 | . 2 . 1 . . . . . . . . . . Extermination 4 | . . . . . . . . 4 . . . . . Reinforcement 13 | . 1 . 5 . . . 3 1 . 2 . . 1 Assault . | . . . . . . . . . . . . . . Garrison . | . . . . . . . . . . . . . . Intercept . | . . . . . . . . . . . . . . Construction Impeded . | . . . . . . . . . . . . . . Haulers Reinforced . | . . . . . . . . . . . . . . Stealth | -11 -10 -10 -9 -9 -9 -8 -8 -7 -7 -7 -6 -6 -6 --------- Run | Scr Mat Min Mat Min Exi Min Mat Fac Was Fac Fac Was Fac Distress Signals 10 | . . . 3 . . . 4 2 . . . . 1 Communications Jammed . | . . . . . . . . . . . . . . Distress Signals . | . . . . . . . . . . . . . . Times Spotted 226 | . 21 2 58 4 7 9 59 38 6 16 . 1 5 Peak Tracking Total 8 | . 3 1 6 2 8 3 5 7 6 6 . 1 3 Tactical Retreats 17 | . 1 . 3 . . 2 5 . . 3 . 1 2 Traps | -11 -10 -10 -9 -9 -9 -8 -8 -7 -7 -7 -6 -6 -6 ------- Run | Scr Mat Min Mat Min Exi Min Mat Fac Was Fac Fac Was Fac Traps Triggered 10 | . 2 . . . . . . 3 . 4 1 . . Indirectly . | . . . . . . . . . . . . . . Trap Hack Attempts 3 | . . . . . . . . 3 . . . . . Triggered . | . . . . . . . . . . . . . . Disarmed . | . . . . . . . . . . . . . . Reprogrammed 1 | . . . . . . . . 1 . . . . . Reused . | . . . . . . . . . . . . . . Traps Extracted . | . . . . . . . . . . . . . . Installed . | . . . . . . . . . . . . . . Triggered . | . . . . . . . . . . . . . . Machines | -11 -10 -10 -9 -9 -9 -8 -8 -7 -7 -7 -6 -6 -6 ---------- Run | Scr Mat Min Mat Min Exi Min Mat Fac Was Fac Fac Was Fac Machines Disabled 9 | . 1 . 1 1 3 . . 3 . . . . . Max in Single Turn 2 | . 1 . 1 1 1 . . 2 . . . . . Garrison Access 1 | . . . . . . . . . . . 1 . . Machines Sabotaged . | . . . . . . . . . . . . . . Garrisons Compromised . | . . . . . . . . . . . . . . Overloaded Fab Kills . | . . . . . . . . . . . . . . Fab Network Shutdowns . | . . . . . . . . . . . . . . Hacking | -11 -10 -10 -9 -9 -9 -8 -8 -7 -7 -7 -6 -6 -6 --------- Run | Scr Mat Min Mat Min Exi Min Mat Fac Was Fac Fac Was Fac Machines Accessed 46 | . 10 . 13 1 2 . 11 3 . . 4 . 2 Terminals 26 | . 7 . 8 . . . 7 1 . . 1 . 2 Fabricators 1 | . . . . . . . . . . . 1 . . Repair Stations 6 | . 1 . 2 . . . 2 1 . . . . . Recycling Units 4 | . 2 . 1 . . . . . . . 1 . . Scanalyzers 4 | . . . 2 . . . 2 . . . . . . Garrison Access 2 | . . . . . . . . 1 . . 1 . . Total Hacks 131 | . 29 . 46 1 2 . 32 8 . . 9 . 4 Successful 87 | . 20 . 32 1 2 . 20 4 . . 6 . 2 Failed 42 | . 8 . 13 . . . 12 4 . . 3 . 2 Catastrophic 6 | . 1 . 1 . . . 2 1 . . . . 1 Database Lockouts 2 | . 1 . 1 . . . . . . . . . . Manual 75 | . 17 . 28 . 1 . 18 3 . . 5 . 3 Terminals 89 | . 24 . 35 . . . 19 3 . . 4 . 4 Fabricators 2 | . . . . . . . . . . . 2 . . Repair Stations 16 | . 2 . 5 . . . 5 4 . . . . . Recycling Units 7 | . 3 . 2 . . . . . . . 2 . . Scanalyzers 12 | . . . 4 . . . 8 . . . . . . Garrison Access 2 | . . . . . . . . 1 . . 1 . . Terminal Hacks 32 | . 8 . 16 1 2 . 3 1 . . 1 . . Record 1 | . . . . . 1 . . . . . . . . Robot Analysis 5 | . 3 . 2 . . . . . . . . . . Prototype ID Bank 4 | . . . 4 . . . . . . . . . . Open Door 1 | . . . . 1 . . . . . . . . . Emergency Access Points 1 | . 1 . . . . . . . . . . . . Alert Level 5 | . . . 3 . . . 1 1 . . . . . Unreport Threat 5 | . . . 3 . . . 2 . . . . . . Locate Traps 7 | . 3 . 4 . . . . . . . . . . Hauler Manifests 1 | . 1 . . . . . . . . . . . . Zone Layout 1 | . . . . . . . . . . . 1 . . EX-Prototype ID Bank 1 | . . . . . 1 . . . . . . . . Fabricator Hacks 1 | . . . . . . . . . . . 1 . . Network Status 1 | . . . . . . . . . . . 1 . . Repair Station Hacks 11 | . 2 . 3 . . . 4 2 . . . . . Scan Component 6 | . 1 . 2 . . . 2 1 . . . . . Repair 5 | . 1 . 1 . . . 2 1 . . . . . Recycling Unit Hacks 3 | . 1 . 1 . . . . . . . 1 . . Process 1 | . . . . . . . . . . . 1 . . Report Inventory 2 | . 1 . 1 . . . . . . . . . . Scanalyzer 10 | . . . 4 . . . 6 . . . . . . Insert Component 4 | . . . 2 . . . 2 . . . . . . Analyze 6 | . . . 2 . . . 4 . . . . . . Garrison Access Hacks 1 | . . . . . . . . . . . 1 . . Seal Access 1 | . . . . . . . . . . . 1 . . Unauthorized Hacks 29 | . 9 . 8 . . . 7 1 . . 2 . 2 Terminals 25 | . 7 . 7 . . . 7 1 . . 1 . 2 Track 9 | . 2 . 4 . . . 2 . . . . . 1 Assimilate 1 | . . . . . . . 1 . . . . . . Botnet 13 | . 4 . 3 . . . 3 1 . . 1 . 1 Operators 2 | . 1 . . . . . 1 . . . . . . Fabricators 1 | . . . . . . . . . . . 1 . . Siphon 1 | . . . . . . . . . . . 1 . . Repair Stations . | . . . . . . . . . . . . . . Recycling Units 3 | . 2 . 1 . . . . . . . . . . Recyclers 1 | . . . 1 . . . . . . . . . . Tunnel 2 | . 2 . . . . . . . . . . . . Scanalyzers . | . . . . . . . . . . . . . . Garrison Access . | . . . . . . . . . . . . . . Data Cores Recovered . | . . . . . . . . . . . . . . Used . | . . . . . . . . . . . . . . Hacking Detections 37 | . 8 . 11 . . . 11 3 . . 2 . 2 Full Trace Events 1 | . . . 1 . . . . . . . . . . Feedback Events . | . . . . . . . . . . . . . . Feedback Blocked . | . . . . . . . . . . . . . . Robot Schematics Acquired . | . . . . . . . . . . . . . . Robots Built . | . . . . . . . . . . . . . . Matter . | . . . . . . . . . . . . . . Time . | . . . . . . . . . . . . . . Total Robot Build Rating . | . . . . . . . . . . . . . . Part Schematics Acquired 4 | . . . 2 . . . 2 . . . . . . Parts Built . | . . . . . . . . . . . . . . Matter . | . . . . . . . . . . . . . . Time . | . . . . . . . . . . . . . . Total Part Build Rating . | . . . . . . . . . . . . . . Parts Repaired 5 | . 1 . 1 . . . 2 1 . . . . . Time 183 | . 26 . 26 . . . 70 61 . . . . . Parts Recycled . | . . . . . . . . . . . . . . Recycled Matter . | . . . . . . . . . . . . . . Retrieved Matter . | . . . . . . . . . . . . . . Retrieved Components . | . . . . . . . . . . . . . . Parts Scanalyzed 4 | . . . 2 . . . 2 . . . . . . Part Schematics Acquired 4 | . . . 2 . . . 2 . . . . . . Parts Damaged 1 | . . . . . . . 1 . . . . . . Bothacking | -11 -10 -10 -9 -9 -9 -8 -8 -7 -7 -7 -6 -6 -6 ------------ Run | Scr Mat Min Mat Min Exi Min Mat Fac Was Fac Fac Was Fac Used RIF Installer . | . . . . . . . . . . . . . . Robots Hacked . | . . . . . . . . . . . . . . Non-combat . | . . . . . . . . . . . . . . Combat . | . . . . . . . . . . . . . . Robot Hacks Applied . | . . . . . . . . . . . . . . Relay Couplers Released . | . . . . . . . . . . . . . . Robots Rewired . | . . . . . . . . . . . . . . Allies Hacked . | . . . . . . . . . . . . . . Hacks Repelled . | . . . . . . . . . . . . . . Allies | -11 -10 -10 -9 -9 -9 -8 -8 -7 -7 -7 -6 -6 -6 -------- Run | Scr Mat Min Mat Min Exi Min Mat Fac Was Fac Fac Was Fac Total Allies 3 | . . 3 . . . . . . . . . . . Largest Group 3 | . . 3 3 . . . . . . . . . . Highest-Rated Group 40 | . . 40 40 . . . . . . . . . . Highest-Rated Ally 16 | . . 16 16 . . . . . . . . . . Total Orders . | . . . . . . . . . . . . . . Ally Attacks 43 | . . . 43 . . . . . . . . . . Total Damage 534 | . . . 534 . . . . . . . . . . Kills 10 | . . . 10 . . . . . . . . . . Allies Corrupted . | . . . . . . . . . . . . . . Allies Melted . | . . . . . . . . . . . . . . Intel | -11 -10 -10 -9 -9 -9 -8 -8 -7 -7 -7 -6 -6 -6 ------- Run | Scr Mat Min Mat Min Exi Min Mat Fac Was Fac Fac Was Fac Robot Analysis Total 5 | . 3 . 2 . . . . . . . . . . Derelict Logs Recovered 3 | . . 1 . 2 . . . . . . . . . Drone Launches . | . . . . . . . . . . . . . . Drone Recoveries . | . . . . . . . . . . . . . . Exploration | -11 -10 -10 -9 -9 -9 -8 -8 -7 -7 -7 -6 -6 -6 ------------- Run | Scr Mat Min Mat Min Exi Min Mat Fac Was Fac Fac Was Fac Turns Passed 16509 | 9 1715 1093 3096 658 2135 648 3622 2160 81 360 100 193 639 Spaces Moved 8960 | 1 838 599 1438 370 1134 270 1198 944 150 495 182 332 1009 Core 2 | . . . . . . . . 1 . . . . 1 Treads 6538 | . 838 599 1438 370 1134 270 1198 691 . . . . . Legs 1 | 1 . . . . . . . . . . . . . Wheels . | . . . . . . . . . . . . . . Hover 2419 | . . . . . . . . 252 150 495 182 332 1008 Flight . | . . . . . . . . . . . . . . Fastest Speed 48 | 120 160 180 165 165 165 185 175 48 48 48 48 48 48 Average Speed 140 | 120 170 180 173 165 170 195 178 145 48 48 48 48 48 Slowest Speed 750 | 120 180 180 180 165 205 197 193 750 48 48 48 48 700 Overloaded Moves . | . . . . . . . . . . . . . . Propulsion Burnouts . | . . . . . . . . . . . . . . Robots Hopped . | . . . . . . . . . . . . . . Cave-ins Triggered 1 | . . . . . . . . . . . . . 1 Exploration Rate (%) 59 | 2 99 99 98 99 70 57 95 16 74 14 5 87 15 Regions Visited 13 Branch Regions 4 Pre-discovered Areas 5 | . 2 1 . 1 1 . . . . . . . . Known Exits Taken 2 | . . . . . . . 1 . . 1 . . . Unknown Exits Taken 7 | 1 1 1 1 1 1 1 . . . . . . . Scrap Searched 3 | . . 1 . 1 . 1 . . . . . . . Spaces Dug 11 | . . . . . . . . . . 3 . . 8 Terrain Destroyed 143 | 2 4 52 9 . 13 3 . 14 . 38 . . 8 Melee 11 | . . . . . . . . . . 3 . . 8 Projectile 3 | . . . . . . 3 . . . . . . . AOE 129 | 2 4 52 9 . 13 . . 14 . 35 . . . Terrain Rammed . | . . . . . . . . . . . . . . Walls Destroyed . | . . . . . . . . . . . . . . Machines Disabled . | . . . . . . . . . . . . . . Actions | -11 -10 -10 -9 -9 -9 -8 -8 -7 -7 -7 -6 -6 -6 --------- Run | Scr Mat Min Mat Min Exi Min Mat Fac Was Fac Fac Was Fac Total 12094 | 3 1015 610 1888 393 1278 339 2494 1637 158 591 195 361 1132 Wait 2205 | . 87 . 270 3 18 31 1086 509 9 70 . 18 104 Move 8949 | . 837 598 1437 369 1133 269 1197 944 149 494 182 331 1009 Hop . | . . . . . . . . . . . . . . Pick Up 112 | . 10 3 28 3 27 . 24 11 . 3 . 3 . Fast Attach 29 | . 3 . 3 . 7 . 4 6 . . . 2 4 Attach 33 | . 2 . 2 . 9 2 6 9 . 1 . 2 . Detach 11 | . . . . . 7 . 1 2 . 1 . . . Swap 117 | . 11 . 21 1 15 7 16 46 . . . . . Drop 135 | . 4 3 34 1 22 1 29 29 . 6 . 3 3 Fire 434 | 3 56 6 88 12 40 28 127 71 . 3 . . . Melee 29 | . . . . . . . . 2 . 13 . 2 12 Ram 1 | . . . . . . . . . . . 1 . . Kick . | . . . . . . . . . . . . . . Crush 21 | . 5 . 5 4 . 1 4 2 . . . . . Escape Stasis . | . . . . . . . . . . . . . . Rewire 15 | . . . . . . . . 3 . . 12 . . Trap 3 | . . . . . . . . 3 . . . . . Miscellaneous . | . . . . . . . . . . . . . . Route ------- -11/Scrapyard -10/Materials (discovered 5 exits: *Mat x3 / [*Min x2]) -10/Mines (discovered 2 exits: *Mat x2) -9/Materials (discovered 6 exits: *Mat x3 / *Min x2 / [*Sto]) -9/Mines (discovered 3 exits: *Mat x2 / *Exi) -9/Exiles -8/Mines -8/Materials (discovered 3 exits: *Fac x3) -7/Factory (discovered 2 exits: *Fac / *Low) -7/Waste -7/Factory -6/Factory -6/Waste -6/Factory (discovered 1 exit: *Ext) History --------- Turn | Location | Event 5 | -11/Scrapyard | Discovered new exit (range 2) 10 | -11/Scrapyard | Entered Materials 313 | -10/Materials | Build established: Mutant 317 | -10/Materials | Discovered new exit (range 16) 689 | -10/Materials | Discovered new exit (range 8) 940 | -10/Materials | Central database locked down 1016 | -10/Materials | Discovered new exit (range 15) 1151 | -10/Materials | Discovered new exit (range 6) 1316 | -10/Materials | Discovered new exit (range 3) 1356 | -10/Materials | Repaired Lgt. Treads 1725 | -10/Materials | Entered Mines 1835 | -10/Mines | Discovered new exit (range 13) 1837 | -10/Mines | YI-UF0 nonchalantly dropped a Grenade Launcher on the ground 2089 | -10/Mines | Discovered new exit (range 13) 2442 | -10/Mines | Assisted by bots powering up and referring to "LRC-V3" 2818 | -10/Mines | Entered Materials 2818 | -9/Materials | Accompanied by 3 allies 2818 | -9/Materials | Evolved 2 slots: Utility x2 3103 | -9/Materials | Discovered new exit (range 16) 3351 | -9/Materials | Discovered new exit (range 14) 3564 | -9/Materials | Discovered new exit (range 10) 3725 | -9/Materials | Discovered new exit (range 16) 4036 | -9/Materials | Discovered new exit (range 16) 4158 | -9/Materials | Repaired Lgt. Armor Plating 4871 | -9/Materials | Destroyed 7 combat bots 4938 | -9/Materials | Central database locked down 4960 | -9/Materials | Discovered new exit (range 11) 5914 | -9/Materials | Entered Mines 6058 | -9/Mines | Build established: Hauler-Mutant 6221 | -9/Mines | Learned location of Zion (-6) 6330 | -9/Mines | Discovered new exit (range 14) 6350 | -9/Mines | Met a Derelict who couldn't figure out how to use a Trap Extractor 6436 | -9/Mines | Discovered new exit (range 12) 6459 | -9/Mines | Learned 4 Materials zone layouts 6563 | -9/Mines | Deemed a non-threat by the Exiles lab entrance 6565 | -9/Mines | Discovered new exit (range 5) 6572 | -9/Mines | Entered Exiles 6612 | -9/Exiles | Met 8R-AWN 6640 | -9/Exiles | Met EX-HEX 6726 | -9/Exiles | Met EX-DEC 6949 | -9/Exiles | Met EX-BIN 6972 | -9/Exiles | Aligned with FarCom system 6973 | -9/Exiles | Given EX-Vault access code 7011 | -9/Exiles | Opened EX-Vault 7021 | -9/Exiles | Found Gui. Plasma Cannon 7024 | -9/Exiles | Found Cloak of Protection 7058 | -9/Exiles | Warned to stay clear of 0b10 Research branches 7230 | -9/Exiles | Discovered new exit (range 14) 8292 | -9/Exiles | Attacked by the Exiles 8304 | -9/Exiles | Destroyed EX-HEX 8385 | -9/Exiles | Core integrity fell below 50% 8422 | -9/Exiles | Destroyed 8R-AWN 8446 | -9/Exiles | Found Prototype Ballistic Gun 8447 | -9/Exiles | Identified 8R-AWN's Boregun 8451 | -9/Exiles | Found Prototype Protection 8453 | -9/Exiles | Found Prototype Processor 8462 | -9/Exiles | Identified 8R-AWN's Armor/EX 8707 | -9/Exiles | Stole two prototypes: Cloak of Protection, Gui. Plasma Cannon 8707 | -9/Exiles | Entered Mines 9292 | -8/Mines | Discovered new exit (range 15) 9355 | -8/Mines | Entered Materials 9355 | -8/Materials | Evolved 2 slots: Propulsion x1, Utility x1 9356 | -8/Materials | Identified exit to Factory 11048 | -8/Materials | Repaired Imp. Treads 11087 | -8/Materials | Repaired Imp. Light Armor Plating 11396 | -8/Materials | Discovered exit to Factory (range 8) 12274 | -8/Materials | Identified Exp. Targeting Computer 12384 | -8/Materials | Discovered exit to Factory (range 5) 12977 | -8/Materials | Entered Factory 12977 | -7/Factory | Evolved 2 slots: Propulsion x1, Utility x1 13190 | -7/Factory | Assembled infested ambush trap array 13971 | -7/Factory | Repaired Broken Greatsword 14239 | -7/Factory | Discovered new exit (range 15) 14372 | -7/Factory | Identified exit to Factory 14485 | -7/Factory | Discovered new exit (range 13) 14602 | -7/Factory | Identified exit to Lower Caves 15113 | -7/Factory | Build established: Mutant 15137 | -7/Factory | Sucked down chute 15137 | -7/Factory | Entered Waste 15145 | -7/Waste | Spotted C-40 Crusher 15150 | -7/Waste | Spotted C-40 Crusher 15152 | -7/Waste | EMP discharged 15180 | -7/Waste | Spotted C-40 Crusher 15192 | -7/Waste | Spotted C-40 Crusher 15193 | -7/Waste | Spotted C-40 Crusher 15197 | -7/Waste | Spotted C-40 Crusher 15199 | -7/Waste | Discovered new exit (range 15) 15218 | -7/Waste | Identified exit to Factory 15218 | -7/Waste | Entered Factory 15554 | -7/Factory | Discovered exit to Factory (range 9) 15578 | -7/Factory | Entered another Factory area 15578 | -6/Factory | Evolved 2 slots: Utility x2 15646 | -6/Factory | Discovered new exit (range 5) 15648 | -6/Factory | Identified exit to Extension 15678 | -6/Factory | Sucked down chute 15678 | -6/Factory | Entered Waste 15678 | -6/Waste | The area was eerily silent 15700 | -6/Waste | A Compactor rumbled back to life 15700 | -6/Waste | Spotted C-40 Crusher 15703 | -6/Waste | Found Damper Plating 15730 | -6/Waste | Discovered new exit (range 15) 15870 | -6/Waste | Identified exit to Factory 15871 | -6/Waste | Entered Factory 15994 | -6/Factory | Build established: Scavenger-Mutant 16003 | -6/Factory | Discovered exit to Extension (range 15) 16510 | -6/Factory | Crushed by falling debris 16510 | -6/Factory | System corruption reached 10% 16510 | -6/Factory | Self-destructed Last Messages --------------- 16306_ K-01 Serf collects debris. 16373_ Connecting with Terminal... >>Trojan(Track) Trojan loaded successfully. Testing... Tracking enabled and active. 16382_ U-05 Engineer builds a Wall. 16481_ Sneak attack on O-24 Administrator. 16481_ O-24 Administrator destroyed. 16485_ Acquired Hacking Suite. 16510_ The unstable cave ceiling collapses. 16510_ Crushed by falling debris. 16510_ Greatsword destroyed. 16510_ System corrupted by crushing effect (+3). 16510_ Hacking Suite destroyed. 16510_ System corrupted by crushing effect (+5). 16510_ Imp. Deuterium Engine destroyed. 16510_ System corrupted by crushing effect (+2). 16510_ Hacking Suite destroyed. 16510_ System corrupted by crushing effect (+3). Map ----- +----------------------------------------------------+ | ########???????????????????????????????????? | | #??????????????????????????????????????????? | | ###################????????????????????????? | | #????????????????????????? | | #????????????????????????? | | === #????????????????????????? | | == #????????????????????????? | | == ######## ?????????????????? | | #??????# ?????????????????? | | #??????+ """"????????????????? | | """""" #??????# ""??????????????????? | | """""" #??????# ??????????????????? | | """""" #??????# ### ?????????????????? | | ! """""" #??????? #?? ????????????????? | | ######## #??? "????????????????? | | u #??? """??o?????????????? | | ##########?? "??????????????????? | | ## ! # """ #??????????????????????? | | # # "T" #??????????????????????? | | #!! # " " #??????????????????????? | | #!/ # #??????????????????????? | | # + #??????????????????????? | | # # [ """ #??????????????????????? | | # # """ #??????????????????????? | | # #### """ #??????????????????????? | | # """""" #??# @##?????????????????????? | | + """""" #??###########?????????????????????? | | # """""" #??????????## ????????????????????? | | # """""" #????????????# ??????????????????? | | !# #?????????????####?????????????????? | | # """ #??????????????????????????????????? | | # """ #??????????????????????????????????? | | # """ #??????????????????????????????????? | | + #??????????????????????????????????? | | # #??????????????????????????????????? | | ## #????????????????????R?????????????? | | ####+#+## #??????????????????????????????????? | | == # #??????????????????????????????????? | | ! # #??????????????????????????????????? | | # #??????????????????????????????????? | | # #??????????????????????????????????? | | + #??????????????????????????????????? | | # #??????????????????????????????????? | | """"" # #??????????????????????????????????? | | """"" # ###????????????????????????????????? | | """"" # ! #????????????????????????????????? | | """"" # *% #????????????????????????????????? | | + / #????????????????????????????????? | | # #????????????????????????????????? | | ######### #????????????????????????????????? | +----------------------------------------------------+ Best States ------------- Heat Dissipation 54 Energy Generation 19 Energy Capacity 310 Matter Stores 393 Matter Capacity 450 Sight Range 16 Robot Scan Range 20 Terrain Scan Density 10 Jamming Range 16 Cloak Strength 5 Additional Mass Support 12 Armor Coverage 1000 Resistance: EX 90 Resistance: EM 15 Propulsion Shielding 66 Weapon Cycling 25 Evasion (%) 55 Recoil Reduction 4 Salvage Targeting 2 Offensive Hacking 20 Item Schematics ----------------- Adv. Treads | -9/Materials | Scanalyzed Hrd. Medium Armor Plating | -9/Materials | Scanalyzed Greatsword | -8/Materials | Scanalyzed Exp. Targeting Computer | -8/Materials | Scanalyzed Robot Schematics ------------------ None Fabricated ------------ Nothing Alien Tech Used ----------------- None Achievements -------------- None Challenges ------------ None Game ------ Seed QuantumAlphaChronowheel Manual? 0 Play Time 01:49:26 Cumulative 196.5 hours Start 2021.01.14 @ 12:42:40 End 2021.01.14 @ 14:46:41 Sessions 1 Manual Loads 0 Difficulty Rogue Special Mode None Game No. 143 Rogue 143 Adventurer 0 Explorer 0 Win Type - Total 4 Types 4/0/0/0/0/0/0/0/0 Lore% 48 Gallery% 61 Achievement% 45 Wizard Run 0 Options --------- ASCII 1 Keyboard 1 Movement Arrows Keybinds 0 Fullscreen 1 Font 24/Proggy Map View 76x50 Tactical HUD 1 Map Filters NONE Filters NONE Steam 1 RUN: 3af12f66-de44-4932-a4ef-bcd64241a6e4